[Event "9th RTU Rapid 2019"]
[Site "Riga"]
[Date "2019.08.04"]
[Round "7.11"]
[White "Maltsevskaya, Aleksandra"]
[Black "Damen, Jip"]
[Result "1-0"]
[WhiteElo "2321"]
[BlackElo "2179"]
[PlyCount "48"]
[EventDate "2019.08.05"]
[EventType "swiss"]
[EventCountry "LAT"]
[TimeControl "5400+30"]
[WhiteClock "0:00:37"]
[BlackClock "0:04:15"]

1. Nf3 {[%emt 1:15:25]} g6 {[%emt 1:15:25]} 2. g3 {[%emt 0:00:30]} Bg7 {[%emt 0:00:30]} 3. d4 {[%emt 0:00:30]} d6 {[%emt 0:00:36]} 4. Bg2 {[%emt 0:00:30]} Nf6 {[%emt 0:00:30]} 5. O-O {[%emt 0:00:30]} O-O {[%emt 0:00:30]} 6. b3 {[%emt 0:00:30]} c6 {[%emt 0:00:35]} 7. c4 {[%emt 0:00:30]} a6 {[%emt 0:00:30]} 8. Bb2 {[%emt 0:00:47]} b5 {[%emt 0:00:30]} 9. cxb5 {[%emt 0:00:49]} axb5 {[%emt 0:00:56]} 10. Nc3 {[%emt 0:00:30]} Qb6 {[%emt 0:00:43]} 11. e4 {[%emt 0:02:46]} Bg4 {[%emt 0:01:09]} 12. h3 {[%emt 0:00:54]} Bxf3 {[%emt 0:00:30]} 13. Bxf3 {[%emt 0:00:30]} Nfd7 {[%emt 0:01:28]} 14. e5 {[%emt 0:02:34]} dxe5 {[%emt 0:00:36]} 15. d5 {[%emt 0:00:30]} Nc5 {[%emt 0:01:50]} 16. dxc6 {[%emt 0:00:41]} e6 {[%emt 0:02:08]} 17. c7 {[%emt 0:01:44]} Nc6 {[%emt 0:00:59]} 18. Ne4 {[%emt 0:02:51]} Nxe4 {[%emt 0:02:56]} 19. Bxe4 {[%emt 0:00:30]} Rfc8 {[%emt 0:00:44]} 20. Rc1 {[%emt 0:01:03]} Rxc7 {[%emt 0:00:38]} 21. Qd6 {[%emt 0:00:34]} Rd8 {[%emt 0:01:07]} 22. Qc5 {[%emt 0:01:29]} Qxc5 {[%emt 0:05:33]} 23. Rxc5 {[%emt 0:00:01]} Rd2 24. Ba1 {[%emt 0:01:07]} Bf8 {[%emt 0:00:37]} 1-0

[Event "9th RTU Rapid 2019"]
[Site "Riga"]
[Date "2019.08.04"]
[Round "7.12"]
[White "Smirnova, Ekaterina"]
[Black "Nevednichy, Vladislav"]
[Result "1/2-1/2"]
[WhiteElo "2134"]
[BlackElo "2495"]
[PlyCount "113"]
[EventDate "2019.08.05"]
[EventType "swiss"]
[EventCountry "LAT"]
[TimeControl "5400+30"]
[WhiteClock "0:00:14"]
[BlackClock "0:00:19"]

1. d4 {[%emt 1:15:21]} Nf6 {[%emt 1:15:28]} 2. c4 {[%emt 0:00:26]} e6 {[%emt 0:00:27]} 3. Nf3 {[%emt 0:00:34]} d5 {[%emt 0:00:27]} 4. Bf4 {[%emt 0:00:41]} Nbd7 {[%emt 0:00:42]} 5. Nc3 {[%emt 0:00:32]} dxc4 {[%emt 0:00:41]} 6. e3 {[%emt 0:01:31]} Nd5 {[%emt 0:01:39]} 7. Bg3 {[%emt 0:00:29]} Bb4 {[%emt 0:00:37]} 8. Rc1 {[%emt 0:00:55]} b5 {[%emt 0:00:31]} 9. Be2 {[%emt 0:00:52]} Bb7 {[%emt 0:00:38]} 10. O-O {[%emt 0:00:27]} a6 {[%emt 0:01:03]} 11. Qc2 {[%emt 0:00:42]} N5f6 {[%emt 0:00:51]} 12. a4 {[%emt 0:00:38]} Bxc3 {[%emt 0:00:54]} 13. bxc3 {[%emt 0:00:31]} Nb6 {[%emt 0:00:46]} 14. a5 {[%emt 0:00:45]} Nbd7 {[%emt 0:00:34]} 15. Nd2 {[%emt 0:01:00]} O-O {[%emt 0:00:28]} 16. Rb1 {[%emt 0:00:26]} Ra7 {[%emt 0:00:58]} 17. e4 {[%emt 0:00:46]} Re8 {[%emt 0:00:50]} 18. e5 {[%emt 0:00:39]} Nd5 {[%emt 0:00:29]} 19. Ne4 {[%emt 0:00:30]} h6 {[%emt 0:00:42]} 20. Qd2 {[%emt 0:01:18]} Ne7 {[%emt 0:00:35]} 21. f3 {[%emt 0:01:41]} Nf8 {[%emt 0:00:35]} 22. Bf4 {[%emt 0:01:29]} Nfg6 {[%emt 0:00:44]} 23. Be3 {[%emt 0:01:27]} Bd5 {[%emt 0:00:44]} 24. g4 {[%emt 0:01:01]} Qa8 {[%emt 0:00:35]} 25. Ng3 {[%emt 0:00:40]} Kh7 {[%emt 0:01:41]} 26. Nh5 {[%emt 0:00:57]} Ng8 {[%emt 0:00:31]} 27. Qe1 {[%emt 0:01:04]} c5 {[%emt 0:00:40]} 28. Qg3 {[%emt 0:01:02]} cxd4 {[%emt 0:00:30]} 29. Bxd4 {[%emt 0:00:36]} Rd7 {[%emt 0:00:31]} 30. f4 {[%emt 0:00:32]} Be4 {[%emt 0:00:28]} 31. Rbd1 {[%emt 0:00:40]} N8e7 {[%emt 0:02:03]} 32. Rf2 {[%emt 0:01:50]} Qd8 {[%emt 0:00:49]} 33. Rdf1 {[%emt 0:00:56]} Rxd4 {[%emt 0:00:28]} 34. cxd4 {[%emt 0:00:26]} Qxd4 {[%emt 0:00:26]} 35. Rd1 {[%emt 0:01:35]} Qc5 {[%emt 0:00:27]} 36. Qc3 {[%emt 0:00:43]} Rc8 {[%emt 0:01:02]} 37. f5 {[%emt 0:00:32]} Nxe5 {[%emt 0:00:35]} 38. f6 {[%emt 0:00:29]} Ng8 {[%emt 0:02:09]} 39. fxg7 {[%emt 0:00:32]} b4 {[%emt 0:00:29]} 40. Qh3 {[%emt 0:00:45]} c3 {[%emt 0:02:17]} 41. g5 {[%emt 0:00:26]} c2 {[%emt 0:00:26]} 42. Nf6+ {[%emt 0:00:28]} Kxg7 {[%emt 0:00:32]} 43. gxh6+ {[%emt 0:00:40]} Kh8 {[%emt 0:00:28]} 44. Nxe4 {[%emt 0:01:01]} cxd1=Q+ {[%emt 0:00:30]} 45. Bxd1 {[%emt 0:00:26]} Qd4 {[%emt 0:00:56]} 46. Bf3 {[%emt 0:01:01]} Rc2 {[%emt 0:01:24]} 47. Kg2 {[%emt 0:01:06]} b3 {[%emt 0:00:40]} 48. h7 {[%emt 0:00:34]} Nf6 {[%emt 0:00:33]} 49. Qh6 {[%emt 0:00:36]} Nxh7 {[%emt 0:00:41]} 50. Rxc2 {[%emt 0:00:31]} bxc2 {[%emt 0:00:50]} 51. Nf6 {[%emt 0:00:26]} Qd3 {[%emt 0:00:34]} 52. Be4 {[%emt 0:00:35]} Qe2+ {[%emt 0:00:33]} 53. Kg3 {[%emt 0:00:32]} Qe1+ {[%emt 0:00:30]} 54. Kg2 {[%emt 0:00:29]} Qe2+ {[%emt 0:00:12]} 55. Kg3 Qe1+ {[%emt 0:01:14]} 56. Kg2 {[%emt 0:00:50]} Qe2+ {[%emt 0:00:39]} 57. Kg3 1/2-1/2

[Event "9th RTU Rapid 2019"]
[Site "Riga"]
[Date "2019.08.04"]
[Round "7.13"]
[White "Rudovskii, Filipp"]
[Black "Nesteretz, Anatoliy"]
[Result "1-0"]
[WhiteElo "2127"]
[BlackElo "2317"]
[PlyCount "43"]
[EventDate "2019.08.05"]
[EventType "swiss"]
[EventCountry "LAT"]
[TimeControl "5400+30"]
[WhiteClock "0:00:08"]
[BlackClock "0:06:12"]

1. e4 {[%emt 1:15:22]} Nc6 {[%emt 1:15:21]} 2. Nf3 {[%emt 0:00:49]} e5 {[%emt 0:01:01]} 3. d4 {[%emt 0:00:26]} exd4 {[%emt 0:00:34]} 4. Nxd4 {[%emt 0:00:28]} Qh4 {[%emt 0:00:52]} 5. Nc3 {[%emt 0:01:31]} Bb4 {[%emt 0:01:35]} 6. Ndb5 {[%emt 0:00:27]} Qxe4+ {[%emt 0:01:07]} 7. Be2 {[%emt 0:00:27]} Bxc3+ {[%emt 0:01:42]} 8. bxc3 {[%emt 0:00:41]} Kd8 {[%emt 0:00:31]} 9. O-O {[%emt 0:00:35]} a6 {[%emt 0:01:31]} 10. Nd4 {[%emt 0:02:01]} Nxd4 {[%emt 0:02:13]} 11. cxd4 {[%emt 0:00:28]} Nf6 {[%emt 0:02:18]} 12. Bg5 {[%emt 0:00:44]} Qf5 {[%emt 0:01:29]} 13. Qd2 {[%emt 0:02:18]} h6 {[%emt 0:00:32]} 14. Bh4 {[%emt 0:00:33]} d6 {[%emt 0:00:55]} 15. Rab1 {[%emt 0:01:34]} Re8 {[%emt 0:01:49]} 16. Bd3 {[%emt 0:00:52]} Qd5 {[%emt 0:02:07]} 17. Bxf6+ {[%emt 0:01:04]} gxf6 {[%emt 0:00:26]} 18. Rfe1 {[%emt 0:02:19]} Rxe1+ {[%emt 0:02:32]} 19. Rxe1 {[%emt 0:00:27]} Qg5 {[%emt 0:00:47]} 20. f4 {[%emt 0:00:30]} Qd5 {[%emt 0:00:30]} 21. Qe3 {[%emt 0:00:26]} Qe6 {[%emt 0:00:30]} 22. Qg3 {[%emt 0:00:46]} 1-0

[Event "9th RTU Rapid 2019"]
[Site "Riga"]
[Date "2019.08.04"]
[Round "7.14"]
[White "Miedema, David"]
[Black "Golubovskis, Maksims"]
[Result "1/2-1/2"]
[WhiteElo "2313"]
[BlackElo "2081"]
[PlyCount "107"]
[EventDate "2019.08.05"]
[EventType "swiss"]
[EventCountry "LAT"]
[TimeControl "5400+30"]
[WhiteClock "0:00:28"]
[BlackClock "0:07:15"]

1. e4 {[%emt 1:15:25]} c5 {[%emt 1:15:20]} 2. Nf3 {[%emt 0:00:27]} Nf6 {[%emt 0:00:40]} 3. e5 {[%emt 0:00:28]} Nd5 {[%emt 0:00:26]} 4. Nc3 {[%emt 0:00:26]} e6 {[%emt 0:00:26]} 5. Nxd5 {[%emt 0:00:47]} exd5 {[%emt 0:00:26]} 6. d4 {[%emt 0:00:26]} Nc6 {[%emt 0:00:29]} 7. dxc5 {[%emt 0:00:38]} Bxc5 {[%emt 0:00:26]} 8. Qxd5 {[%emt 0:00:29]} d6 {[%emt 0:00:27]} 9. Be2 {[%emt 0:01:12]} Qa5+ {[%emt 0:01:19]} 10. Qd2 {[%emt 0:00:30]} Qxd2+ {[%emt 0:01:50]} 11. Bxd2 {[%emt 0:00:27]} dxe5 {[%emt 0:00:32]} 12. Bb5 {[%emt 0:00:43]} f6 {[%emt 0:00:57]} 13. Be3 {[%emt 0:00:41]} Bxe3 {[%emt 0:00:42]} 14. Bxc6+ {[%emt 0:00:30]} bxc6 {[%emt 0:00:27]} 15. fxe3 {[%emt 0:00:26]} Be6 {[%emt 0:00:55]} 16. O-O-O {[%emt 0:00:36]} Ke7 {[%emt 0:00:26]} 17. e4 {[%emt 0:00:31]} a5 {[%emt 0:01:02]} 18. a4 {[%emt 0:00:27]} Rab8 {[%emt 0:00:37]} 19. b3 {[%emt 0:00:38]} c5 {[%emt 0:00:41]} 20. Nd2 {[%emt 0:00:26]} c4 {[%emt 0:00:53]} 21. Nxc4 {[%emt 0:01:43]} Bxc4 {[%emt 0:00:42]} 22. bxc4 {[%emt 0:00:26]} Rhc8 {[%emt 0:01:00]} 23. Rd5 {[%emt 0:00:26]} Rxc4 {[%emt 0:00:27]} 24. Rxa5 {[%emt 0:00:29]} Rbc8 {[%emt 0:00:26]} 25. Ra7+ {[%emt 0:00:39]} Ke6 {[%emt 0:00:30]} 26. Rxg7 {[%emt 0:00:35]} Rxc2+ {[%emt 0:01:08]} 27. Kb1 {[%emt 0:00:26]} R2c4 {[%emt 0:00:36]} 28. Ra7 {[%emt 0:01:25]} Rb8+ {[%emt 0:02:14]} 29. Ka2 {[%emt 0:00:44]} Rxe4 {[%emt 0:02:29]} 30. Ra6+ {[%emt 0:00:34]} Ke7 {[%emt 0:02:20]} 31. Rc1 {[%emt 0:00:37]} Re2+ {[%emt 0:00:46]} 32. Ka3 {[%emt 0:00:27]} Re3+ {[%emt 0:00:28]} 33. Ka2 {[%emt 0:00:26]} Kf7 {[%emt 0:01:35]} 34. Rc2 {[%emt 0:00:35]} Re4 {[%emt 0:01:27]} 35. Rf2 {[%emt 0:00:35]} Rf4 {[%emt 0:00:36]} 36. Rxf4 {[%emt 0:00:31]} exf4 {[%emt 0:00:26]} 37. Ra7+ {[%emt 0:00:32]} Ke6 {[%emt 0:00:43]} 38. Rg7 {[%emt 0:00:35]} Kd5 {[%emt 0:01:25]} 39. Ka3 {[%emt 0:00:32]} Kc4 {[%emt 0:00:26]} 40. Rc7+ {[%emt 0:00:27]} Kd3 {[%emt 0:00:36]} 41. Rg7 {[%emt 0:00:51]} Kc3 {[%emt 0:00:40]} 42. Rc7+ {[%emt 0:00:35]} Kd3 {[%emt 0:00:26]} 43. Rxh7 {[%emt 0:02:31]} Rg8 {[%emt 0:00:31]} 44. Rh4 {[%emt 0:01:05]} Ke3 {[%emt 0:00:30]} 45. Rh3+ {[%emt 0:00:46]} Ke4 {[%emt 0:00:29]} 46. g3 {[%emt 0:00:43]} f3 {[%emt 0:00:34]} 47. Rh4+ {[%emt 0:00:26]} Ke3 {[%emt 0:00:27]} 48. Rf4 {[%emt 0:00:26]} Rh8 {[%emt 0:00:35]} 49. a5 {[%emt 0:00:37]} Rxh2 {[%emt 0:00:28]} 50. Rxf6 {[%emt 0:00:36]} Rg2 {[%emt 0:00:38]} 51. Re6+ {[%emt 0:00:36]} Kd3 {[%emt 0:00:32]} 52. Rd6+ {[%emt 0:00:28]} Ke3 {[%emt 0:00:26]} 53. Re6+ {[%emt 0:00:26]} Kd3 {[%emt 0:00:25]} 54. Rd6+ {[%emt 0:00:42]} 1/2-1/2

[Event "9th RTU Rapid 2019"]
[Site "Riga"]
[Date "2019.08.04"]
[Round "7.15"]
[White "Gudovskis, Konstantins"]
[Black "Grinev, Valeriy"]
[Result "0-1"]
[WhiteElo "2015"]
[BlackElo "2287"]
[PlyCount "50"]
[EventDate "2019.08.05"]
[EventType "swiss"]
[EventCountry "LAT"]
[TimeControl "5400+30"]
[WhiteClock "0:06:50"]
[BlackClock "0:00:08"]

1. d4 {[%emt 1:15:28]} Nf6 {[%emt 1:15:27]} 2. c4 {[%emt 0:00:29]} g6 {[%emt 0:00:28]} 3. Nc3 {[%emt 0:00:32]} d5 {[%emt 0:00:28]} 4. Nf3 {[%emt 0:00:30]} Bg7 {[%emt 0:00:29]} 5. Bg5 {[%emt 0:00:29]} dxc4 {[%emt 0:00:29]} 6. e4 {[%emt 0:00:56]} c5 {[%emt 0:00:29]} 7. d5 {[%emt 0:02:20]} b5 {[%emt 0:00:30]} 8. Qc2 {[%emt 0:00:50]} O-O {[%emt 0:03:57]} 9. Rd1 {[%emt 0:03:12]} h6 {[%emt 0:01:57]} 10. Be3 {[%emt 0:01:14]} Qb6 {[%emt 0:00:45]} 11. h3 {[%emt 0:04:01]} e6 {[%emt 0:01:50]} 12. dxe6 {[%emt 0:03:25]} Bxe6 {[%emt 0:00:35]} 13. Be2 {[%emt 0:00:28]} Nc6 {[%emt 0:00:31]} 14. a3 {[%emt 0:00:53]} Rad8 {[%emt 0:00:42]} 15. Qc1 {[%emt 0:01:18]} Kh7 {[%emt 0:00:40]} 16. g4 {[%emt 0:00:42]} Nd4 {[%emt 0:00:45]} 17. g5 {[%emt 0:00:51]} Nxf3+ {[%emt 0:00:41]} 18. Bxf3 {[%emt 0:00:27]} Rxd1+ {[%emt 0:00:35]} 19. Bxd1 {[%emt 0:00:35]} hxg5 {[%emt 0:00:29]} 20. Bxg5 {[%emt 0:00:30]} b4 {[%emt 0:00:29]} 21. Na4 {[%emt 0:00:41]} Qc6 {[%emt 0:00:33]} 22. f3 {[%emt 0:00:39]} Nxe4 {[%emt 0:00:28]} 23. h4 {[%emt 0:00:54]} Bd4 {[%emt 0:01:23]} 24. Qf4 {[%emt 0:00:28]} Nf2 {[%emt 0:00:32]} 25. h5 {[%emt 0:00:30]} Nd3+ {[%emt 0:00:28]} 0-1

[Event "9th RTU Rapid 2019"]
[Site "Riga"]
[Date "2019.08.04"]
[Round "7.16"]
[White "Dubrovin, Robert"]
[Black "Shashnev, Pavel"]
[Result "1/2-1/2"]
[WhiteElo "2282"]
[BlackElo "2021"]
[PlyCount "107"]
[EventDate "2019.08.05"]
[EventType "swiss"]
[EventCountry "LAT"]
[TimeControl "5400+30"]
[WhiteClock "0:00:35"]
[BlackClock "0:00:55"]

1. d4 {[%emt 1:15:21]} Nf6 {[%emt 1:15:21]} 2. c4 {[%emt 0:00:26]} e5 {[%emt 0:00:29]} 3. dxe5 {[%emt 0:00:27]} Ng4 {[%emt 0:00:26]} 4. Bf4 {[%emt 0:00:27]} g5 {[%emt 0:00:26]} 5. Bg3 {[%emt 0:00:28]} Bg7 {[%emt 0:00:27]} 6. Nf3 {[%emt 0:00:30]} Nc6 {[%emt 0:00:26]} 7. Nc3 {[%emt 0:00:35]} Ngxe5 {[%emt 0:00:29]} 8. Nxe5 {[%emt 0:00:26]} Nxe5 {[%emt 0:00:27]} 9. e3 {[%emt 0:00:26]} d6 {[%emt 0:00:34]} 10. Qb3 {[%emt 0:01:03]} Be6 {[%emt 0:01:24]} 11. Be2 {[%emt 0:00:42]} O-O {[%emt 0:00:28]} 12. O-O {[%emt 0:00:44]} f5 {[%emt 0:03:32]} 13. f3 {[%emt 0:01:10]} Rb8 {[%emt 0:02:19]} 14. Qa4 {[%emt 0:01:47]} f4 {[%emt 0:02:49]} 15. Bf2 {[%emt 0:00:31]} Qe7 {[%emt 0:02:08]} 16. Ne4 {[%emt 0:05:05]} g4 {[%emt 0:01:08]} 17. exf4 {[%emt 0:00:40]} gxf3 {[%emt 0:00:41]} 18. gxf3 {[%emt 0:00:33]} Ng6 {[%emt 0:01:38]} 19. Ng3 {[%emt 0:04:34]} Nxf4 {[%emt 0:00:38]} 20. Qd1 {[%emt 0:01:06]} Qf7 {[%emt 0:02:39]} 21. Bxa7 {[%emt 0:01:09]} Ra8 {[%emt 0:00:43]} 22. Bd4 {[%emt 0:00:35]} Nxe2+ {[%emt 0:00:46]} 23. Nxe2 {[%emt 0:00:27]} Bxc4 {[%emt 0:00:45]} 24. Bxg7 {[%emt 0:00:46]} Qxg7+ {[%emt 0:00:30]} 25. Kh1 Rf6 {[%emt 0:01:04]} 26. Rg1 {[%emt 0:01:31]} Rg6 {[%emt 0:00:26]} 27. Qd2 {[%emt 0:01:22]} Rxa2 {[%emt 0:00:38]} 28. Rxa2 {[%emt 0:00:55]} Bxa2 {[%emt 0:00:26]} 29. Rxg6 {[%emt 0:00:33]} Qxg6 {[%emt 0:00:29]} 30. Qa5 {[%emt 0:00:30]} Qb1+ {[%emt 0:00:28]} 31. Kg2 {[%emt 0:00:26]} Qxb2 {[%emt 0:00:08]} 32. Kf1 {[%emt 0:00:39]} Bc4 {[%emt 0:00:55]} 33. Qg5+ {[%emt 0:00:26]} Qg7 {[%emt 0:00:27]} 34. Qd8+ {[%emt 0:00:26]} Qf8 {[%emt 0:00:27]} 35. Qg5+ {[%emt 0:00:27]} Qg7 {[%emt 0:00:29]} 36. Qd8+ {[%emt 0:00:26]} Qf8 {[%emt 0:00:26]} 37. Qg5+ {[%emt 0:00:29]} Kh8 {[%emt 0:00:00]} 38. Kf2 {[%emt 0:00:30]} Bxe2 {[%emt 0:00:00]} 39. Kxe2 {[%emt 0:00:26]} c5 {[%emt 0:00:00]} 40. f4 {[%emt 0:00:44]} c4 {[%emt 0:01:12]} 41. Kd2 {[%emt 0:00:29]} b5 {[%emt 0:00:52]} 42. Qxb5 {[%emt 0:00:31]} Qxf4+ {[%emt 0:00:27]} 43. Kc3 {[%emt 0:00:28]} Qc1+ {[%emt 0:01:12]} 44. Kd4 {[%emt 0:00:29]} Qf4+ {[%emt 0:00:27]} 45. Kc3 {[%emt 0:00:27]} Qe5+ {[%emt 0:00:38]} 46. Kxc4 {[%emt 0:00:26]} Qxb5+ {[%emt 0:00:27]} 47. Kxb5 {[%emt 0:00:25]} Kg7 {[%emt 0:00:26]} 48. Kc6 {[%emt 0:00:25]} Kf6 {[%emt 0:00:26]} 49. Kxd6 {[%emt 0:00:26]} Kf5 {[%emt 0:00:26]} 50. Kd5 {[%emt 0:00:28]} Kg4 {[%emt 0:00:26]} 51. Ke4 {[%emt 0:00:26]} Kh3 {[%emt 0:00:27]} 52. Kf3 {[%emt 0:00:26]} Kxh2 {[%emt 0:00:26]} 53. Kf2 {[%emt 0:00:25]} h5 {[%emt 0:00:27]} 54. Kf1 {[%emt 0:00:26]} 1/2-1/2

[Event "9th RTU Rapid 2019"]
[Site "Riga"]
[Date "2019.08.04"]
[Round "7.17"]
[White "Raghavi, N.."]
[Black "Evchin, Maxim"]
[Result "1-0"]
[WhiteElo "2068"]
[BlackElo "2269"]
[PlyCount "63"]
[EventDate "2019.08.05"]
[EventType "swiss"]
[EventCountry "LAT"]
[TimeControl "5400+30"]
[WhiteClock "0:00:15"]
[BlackClock "0:01:28"]

1. Nf3 {[%emt 1:15:44]} g6 {[%emt 1:15:28]} 2. g3 {[%emt 0:00:27]} Bg7 {[%emt 0:00:27]} 3. Bg2 {[%emt 0:00:26]} c5 {[%emt 0:00:28]} 4. O-O {[%emt 0:00:41]} Nc6 {[%emt 0:00:27]} 5. e4 {[%emt 0:01:07]} d6 {[%emt 0:00:52]} 6. c3 {[%emt 0:00:34]} e5 {[%emt 0:01:10]} 7. a3 {[%emt 0:01:28]} Nge7 {[%emt 0:00:36]} 8. b4 {[%emt 0:00:35]} a6 {[%emt 0:01:12]} 9. d3 {[%emt 0:01:03]} O-O {[%emt 0:00:36]} 10. Nbd2 {[%emt 0:00:56]} h6 {[%emt 0:00:49]} 11. Nb3 {[%emt 0:01:09]} b6 {[%emt 0:00:54]} 12. Be3 {[%emt 0:01:03]} f5 {[%emt 0:01:45]} 13. Qd2 {[%emt 0:01:13]} g5 {[%emt 0:01:45]} 14. exf5 {[%emt 0:00:42]} Bxf5 {[%emt 0:00:27]} 15. Ne1 {[%emt 0:01:15]} d5 {[%emt 0:01:46]} 16. f4 {[%emt 0:02:21]} c4 {[%emt 0:02:21]} 17. dxc4 {[%emt 0:02:38]} dxc4 {[%emt 0:00:28]} 18. Nc1 {[%emt 0:00:37]} Qxd2 {[%emt 0:01:07]} 19. Bxd2 {[%emt 0:00:26]} Rad8 {[%emt 0:00:26]} 20. Ra2 {[%emt 0:00:30]} exf4 {[%emt 0:03:30]} 21. gxf4 {[%emt 0:00:26]} gxf4 {[%emt 0:00:43]} 22. Ne2 {[%emt 0:01:23]} Ne5 {[%emt 0:01:49]} 23. Nxf4 {[%emt 0:00:39]} Nd3 {[%emt 0:00:50]} 24. Nh5 {[%emt 0:01:20]} Be5 {[%emt 0:00:44]} 25. Nf3 {[%emt 0:00:39]} Bh8 {[%emt 0:00:36]} 26. Bxh6 {[%emt 0:00:38]} Rfe8 {[%emt 0:01:06]} 27. Bg5 {[%emt 0:00:53]} Rc8 {[%emt 0:00:38]} 28. Nh4 {[%emt 0:00:54]} Bg4 {[%emt 0:00:37]} 29. Nf6+ {[%emt 0:00:29]} Bxf6 {[%emt 0:00:26]} 30. Rxf6 {[%emt 0:00:30]} Kg7 {[%emt 0:00:40]} 31. Rxb6 {[%emt 0:00:44]} Nf5 {[%emt 0:00:32]} 32. Rb7+ {[%emt 0:01:02]} 1-0

[Event "9th RTU Rapid 2019"]
[Site "Riga"]
[Date "2019.08.04"]
[Round "7.18"]
[White "Brikers, Aleksandrs"]
[Black "Reizniece-Ozola, Dana"]
[Result "0-1"]
[WhiteElo "2011"]
[BlackElo "2261"]
[PlyCount "66"]
[EventDate "2019.08.05"]
[EventType "swiss"]
[EventCountry "LAT"]
[TimeControl "5400+30"]
[WhiteClock "0:04:12"]
[BlackClock "0:00:41"]

1. e4 {[%emt 1:15:21]} g6 {[%emt 1:15:23]} 2. d4 {[%emt 0:00:26]} d6 {[%emt 0:00:26]} 3. f4 {[%emt 0:00:32]} Bg7 {[%emt 0:00:27]} 4. Nc3 {[%emt 0:00:26]} a6 {[%emt 0:00:26]} 5. a4 {[%emt 0:00:29]} b6 {[%emt 0:00:27]} 6. Nf3 {[%emt 0:00:28]} Bb7 {[%emt 0:00:26]} 7. Bd3 {[%emt 0:00:29]} c5 {[%emt 0:00:50]} 8. Be3 {[%emt 0:01:30]} Nc6 {[%emt 0:00:44]} 9. d5 {[%emt 0:00:32]} Nb4 {[%emt 0:00:27]} 10. Bc4 {[%emt 0:01:34]} Nf6 {[%emt 0:00:43]} 11. O-O {[%emt 0:00:51]} O-O {[%emt 0:00:57]} 12. Qd2 {[%emt 0:02:03]} Ng4 {[%emt 0:02:24]} 13. Nd1 {[%emt 0:01:55]} a5 {[%emt 0:03:28]} 14. c3 {[%emt 0:00:42]} Na6 {[%emt 0:00:26]} 15. Kh1 {[%emt 0:02:03]} Nxe3 {[%emt 0:00:27]} 16. Nxe3 {[%emt 0:00:26]} Nc7 {[%emt 0:00:26]} 17. Rf2 {[%emt 0:02:20]} Bc8 {[%emt 0:01:26]} 18. Rd1 {[%emt 0:01:04]} Bd7 {[%emt 0:00:27]} 19. Qc2 {[%emt 0:01:02]} Qe8 {[%emt 0:00:47]} 20. b3 {[%emt 0:00:49]} b5 {[%emt 0:00:45]} 21. axb5 {[%emt 0:00:27]} Nxb5 {[%emt 0:00:33]} 22. e5 {[%emt 0:00:35]} Na3 {[%emt 0:00:30]} 23. Qa2 {[%emt 0:01:28]} Nxc4 {[%emt 0:00:30]} 24. Nxc4 {[%emt 0:00:26]} Qb8 {[%emt 0:00:43]} 25. Ra1 {[%emt 0:01:20]} a4 {[%emt 0:00:52]} 26. exd6 {[%emt 0:01:18]} exd6 {[%emt 0:00:46]} 27. Qd2 {[%emt 0:00:42]} axb3 {[%emt 0:00:54]} 28. Rxa8 {[%emt 0:01:06]} Qxa8 {[%emt 0:00:26]} 29. Qb2 {[%emt 0:00:28]} Qxd5 {[%emt 0:02:05]} 30. Nfd2 {[%emt 0:00:55]} Rb8 {[%emt 0:00:50]} 31. h3 {[%emt 0:00:34]} Qd3 {[%emt 0:00:50]} 32. Rf3 {[%emt 0:00:35]} Qc2 {[%emt 0:00:52]} 33. Re3 {[%emt 0:00:53]} d5 {[%emt 0:00:35]} 0-1

[Event "9th RTU Rapid 2019"]
[Site "Riga"]
[Date "2019.08.04"]
[Round "7.19"]
[White "Wedda, Dries"]
[Black "Babrauskas, Darius"]
[Result "1-0"]
[WhiteElo "2234"]
[BlackElo "1988"]
[PlyCount "91"]
[EventDate "2019.08.05"]
[EventType "swiss"]
[EventCountry "LAT"]
[TimeControl "5400+30"]
[WhiteClock "0:00:17"]
[BlackClock "0:00:31"]

1. d4 {[%emt 1:15:22]} d5 {[%emt 1:15:21]} 2. c4 {[%emt 0:00:26]} c6 {[%emt 0:00:26]} 3. Nf3 {[%emt 0:00:26]} Nf6 {[%emt 0:00:26]} 4. g3 {[%emt 0:00:26]} e6 {[%emt 0:00:27]} 5. Bg2 {[%emt 0:00:26]} dxc4 {[%emt 0:00:52]} 6. O-O {[%emt 0:01:14]} b5 {[%emt 0:01:22]} 7. Ne5 {[%emt 0:00:38]} Bb7 {[%emt 0:00:49]} 8. b3 {[%emt 0:00:27]} cxb3 {[%emt 0:00:48]} 9. axb3 {[%emt 0:00:26]} Be7 {[%emt 0:00:46]} 10. Nc3 {[%emt 0:00:49]} a6 {[%emt 0:00:55]} 11. Bb2 {[%emt 0:00:33]} O-O {[%emt 0:00:27]} 12. Ne4 {[%emt 0:00:27]} Qb6 {[%emt 0:00:59]} 13. Nc5 {[%emt 0:05:05]} Rd8 {[%emt 0:02:32]} 14. Nxb7 {[%emt 0:02:02]} Qxb7 {[%emt 0:00:26]} 15. Qc2 {[%emt 0:00:50]} Nd5 {[%emt 0:01:48]} 16. Rfc1 {[%emt 0:00:28]} Rc8 {[%emt 0:01:51]} 17. e4 {[%emt 0:00:55]} Nb4 {[%emt 0:00:33]} 18. Qd2 {[%emt 0:00:26]} f6 {[%emt 0:00:55]} 19. Ng4 {[%emt 0:01:19]} Nd7 {[%emt 0:00:38]} 20. Ne3 {[%emt 0:01:08]} Nb6 {[%emt 0:01:01]} 21. Bh3 {[%emt 0:02:10]} Qd7 {[%emt 0:00:53]} 22. Rd1 {[%emt 0:01:21]} Kh8 {[%emt 0:00:49]} 23. Ra5 {[%emt 0:00:55]} Rd8 {[%emt 0:02:44]} 24. Ba3 {[%emt 0:00:39]} Qd6 {[%emt 0:01:07]} 25. Nc2 {[%emt 0:01:22]} c5 {[%emt 0:00:38]} 26. Bxb4 {[%emt 0:00:31]} cxb4 {[%emt 0:00:28]} 27. Rda1 {[%emt 0:00:32]} Nd7 {[%emt 0:00:53]} 28. Qe2 {[%emt 0:00:50]} h6 {[%emt 0:00:48]} 29. Bg2 {[%emt 0:00:30]} e5 {[%emt 0:00:26]} 30. Ne3 {[%emt 0:01:08]} Qxd4 {[%emt 0:01:24]} 31. Nf5 {[%emt 0:00:35]} Qc5 {[%emt 0:00:27]} 32. Bh3 {[%emt 0:00:41]} Bf8 {[%emt 0:00:32]} 33. Rxa6 {[%emt 0:00:30]} Rxa6 {[%emt 0:00:44]} 34. Rxa6 {[%emt 0:00:26]} Nb6 {[%emt 0:00:40]} 35. Qh5 {[%emt 0:00:40]} Qc1+ {[%emt 0:00:40]} 36. Kg2 {[%emt 0:00:44]} Rd1 {[%emt 0:00:32]} 37. Ne3 {[%emt 0:00:30]} Rg1+ {[%emt 0:00:36]} 38. Kf3 {[%emt 0:00:25]} Nd7 {[%emt 0:00:37]} 39. Qf7 {[%emt 0:00:28]} Re1 {[%emt 0:00:37]} 40. Qxd7 {[%emt 0:00:49]} Rxe3+ {[%emt 0:00:26]} 41. fxe3 {[%emt 0:00:27]} Qh1+ {[%emt 0:00:43]} 42. Bg2 {[%emt 0:00:26]} Qxh2 {[%emt 0:00:26]} 43. Ra8 {[%emt 0:00:36]} Kg8 {[%emt 0:00:49]} 44. Qe6+ {[%emt 0:00:26]} Kh7 {[%emt 0:00:25]} 45. Rxf8 {[%emt 0:00:28]} Qh5+ {[%emt 0:00:27]} 46. Qg4 {[%emt 0:00:27]} 1-0